Cogmind - Beta 17.1 @@@ ROGUE MODE // 2026.09.06 @ 14:16:45 Player: Xcalibur Result: Destroyed by C-57 Dissector with Dual-blade Saw Performance ------------- Evolutions (9) 4500 Regions Visited (12) 2400 Robots Destroyed (24) 120 Value Destroyed (1121) 1121 Prototype IDs (1) 20 Alien Tech Used (3) 600 Bonus (1530) 1530 TOTAL SCORE: 10291 Bonus ------- Pacifist 470 High Alert Combat Kills 60 Entered DSFs 500 Scanned by Researcher 500 Cogmind --------- Core Integrity 0/1600 Matter 278/300 Energy 90/100 System Corruption 1% Temperature Cool (0) Movement Core (50) Location -1/Access Parts ------- > --- POWER (1) -------- (None) > --- PROPULSION (11) -- Antigrav Array > --- UTILITY (10) ----- (None) > --- WEAPON (3) ------- (None) > --- INVENTORY (5) ---- Nova Cannon Great Maul Peak State ------------ > --- POWER ------------ (None) > --- PROPULSION ------- Advanced Medium Treads Advanced Medium Treads Biometal Medium Treads > --- UTILITY ---------- Trap Scanner Enhanced Optical Array Advanced Terrain Scan Processor Advanced Terrain Scan Processor System Shield System Shield > --- WEAPON ----------- Great Maul > --- INVENTORY -------- Transmission Jammer Layered Light Armor Plating Transdimensional Reconstructor Missile Launcher [Rating: 49] Favorites ----------- Power Ion Engine Engine Ion Engine Propulsion Advanced Medium Treads Treads Advanced Medium Treads Leg Aluminum Leg Hover Unit Improved Antigrav System Flight Unit Xenon Bombardment Thruster Utility System Shield Device Trap Scanner Storage Small Storage Unit Processor Advanced Terrain Scan Processor Hackware System Shield Protection Layered Light Armor Plating Weapon Scythe Energy Gun EM Pulse Gun Energy Cannon Nova Cannon Launcher Missile Launcher Impact Weapon Great Maul Slashing Weapon Scythe Build | -11 -10 -9 -8 -7 -7 -6 -5 -4 -3 -3 -2 -1 ------- Run | Yrd Mat Mat Mat Fac DSF Fac Fac Fac Res Qua Res Acc Slots Evolved 18 | . . 2 2 2 . 2 2 2 2 . 2 2 Power . | . . . . . . . . . . . . . Propulsion 9 | . . 2 1 1 . . 1 1 1 . 1 1 Utility 8 | . . . 1 1 . 2 1 1 1 . 1 . Weapon 1 | . . . . . . . . . . . . 1 Parts Attached 29 | . 1 . 5 3 . 5 2 4 . 5 . 4 Power . | . . . . . . . . . . . . . Engine . | . . . . . . . . . . . . . Core . | . . . . . . . . . . . . . Reactor . | . . . . . . . . . . . . . Propulsion 10 | . . . 1 1 . 1 1 2 . 2 . 2 Treads 4 | . . . . . . . 1 2 . 1 . . Leg . | . . . . . . . . . . . . . Wheel . | . . . . . . . . . . . . . Hover 2 | . . . . . . . . . . 1 . 1 Flight 4 | . . . 1 1 . 1 . . . . . 1 Utility 14 | . 1 . 3 2 . 3 . 2 . 1 . 2 Device 6 | . 1 . . 2 . 2 . . . . . 1 Storage . | . . . . . . . . . . . . . Processor 4 | . . . 1 . . 1 . 2 . . . . Hackware 2 | . . . 2 . . . . . . . . . Protection 2 | . . . . . . . . . . 1 . 1 Artifact . | . . . . . . . . . . . . . Weapon 5 | . . . 1 . . 1 1 . . 2 . . Energy Gun . | . . . . . . . . . . . . . Energy Cannon 1 | . . . . . . . . . . 1 . . Ballistic Gun . | . . . . . . . . . . . . . Ballistic Cannon . | . . . . . . . . . . . . . Launcher 2 | . . . 1 . . . 1 . . . . . Special Weapon . | . . . . . . . . . . . . . Impact Weapon 1 | . . . . . . 1 . . . . . . Slashing Weapon 1 | . . . . . . . . . . 1 . . Piercing Weapon . | . . . . . . . . . . . . . Special Melee Weapon . | . . . . . . . . . . . . . Unidentified Prototypes 3 | . . . . . . . . . . 1 . 2 Parts Lost 22 | . . . 4 . . . 3 2 . 6 1 6 Power . | . . . . . . . . . . . . . Propulsion 11 | . . . 2 . . . 3 1 . 3 1 1 Utility 8 | . . . 1 . . . . 1 . 2 . 4 Weapon 3 | . . . 1 . . . . . . 1 . 1 Highest Loss Streak 5 | . . . 4 . . . 3 2 . 3 1 5 To Critical Strikes . | . . . . . . . . . . . . . Average Backups 4 | 6 5 5 5 4 4 4 4 4 5 4 5 4 Power . | 1 1 1 1 . . . . . . . . . Propulsion . | 4 3 3 1 1 1 1 . . . . . . Utility 1 | . . . . . 1 1 3 3 3 1 1 . Weapon 1 | 1 1 1 2 2 2 1 1 1 2 1 2 2 Tool/Special . | . . . . . . . . . . . . . Unused Backups 1 | . . . . . . 1 . . . . . . Power . | . . . . . . . . . . . . . Propulsion . | . . . . . . . . . . . . . Utility . | . . . . . . . . . . . . . Weapon 1 | . . . . . . 1 . . . . . . Tool/Special . | . . . . . . . . . . . . . Average Slot Usage (%) 35 | . 36 33 22 42 46 55 54 42 38 34 26 13 Treads 2 | . . . . . . . . 7 9 6 . . Leg 2 | . 28 22 5 . . . . . . . . . Flight 4 | . . . 1 13 15 15 13 . . . . . Device 5 | . 8 11 4 5 7 15 10 5 4 3 . . Processor 8 | . . . 4 7 7 9 11 18 14 11 8 6 Hackware 8 | . . . 8 15 15 13 11 10 9 9 8 4 Peak Build Rating 49 | 5 3 3 10 19 18 34 34 44 37 49 29 27 Average Rating 25 | 3 2 3 5 16 18 28 31 31 37 35 27 17 On Entrance 18 | 6 2 3 3 10 18 18 34 19 37 37 29 22 Avg Prop Armor Cover (%) 27 | . 36 35 33 24 . 11 8 34 39 32 21 28 Naked Turns 28 | . . . . . . . . . . . . 28 Heaviest Build 14 | . 1 1 1 2 2 7 7 2 2 14 2 4 Greatest Support 26 | 3 3 3 4 10 10 16 12 3 3 3 3 26 Greatest Overweight (x) 4 | . . . . . . 1 . . . 4 . 1 Average Overweight (x) . | . . . . . . . . . . . . . Largest Inventory Capacity 8 | 8 5 5 5 5 5 5 5 5 5 5 5 5 Average Capacity 5 | 7 5 5 5 5 5 5 5 5 5 5 5 5 Most Carried 6 | 6 5 5 5 5 4 5 5 5 5 5 5 5 Average Carried 4 | 5 5 5 4 4 4 4 4 4 5 4 5 4 Final Capacity 5 | 5 5 5 5 5 5 5 5 5 5 5 5 5 Final Carried 5 | 5 5 5 5 4 4 5 5 5 5 5 5 2 Class Distribution -------------------- 59% | Hacker-Mutant 22% | Mutant 18% | Hacker-Scout Dominant Class ---------------- Mutant | -10/Materials Mutant | -9/Materials Mutant | -8/Materials Mutant | -7/Factory Hacker-Mutant | -7/DSF Hacker-Scout | -6/Factory Hacker-Scout | -5/Factory Hacker-Mutant | -4/Factory Hacker-Mutant | -3/Research Hacker-Mutant | -3/Quarantine Hacker-Mutant | -2/Research Mutant | -1/Access Resources | -11 -10 -9 -8 -7 -7 -6 -5 -4 -3 -3 -2 -1 ----------- Run | Yrd Mat Mat Mat Fac DSF Fac Fac Fac Res Qua Res Acc Matter Collected 569 | 200 . 7 . . . . 29 . . 204 . 129 Remotely . | . . . . . . . . . . . . . Salvage Created 694 | . . . 10 . . . 34 . . 622 . 28 Parts 45 | . . . 5 . . . 3 . . 34 . 3 Haulers Intercepted . | . . . . . . . . . . . . . Recyclers Shooed . | . . . . . . . . . . . . . Parts Field Recycled . | . . . . . . . . . . . . . Retrieved Matter . | . . . . . . . . . . . . . Parts Self-Destructed . | . . . . . . . . . . . . . Prevented . | . . . . . . . . . . . . . Parts Restored . | . . . . . . . . . . . . . Kills | -11 -10 -9 -8 -7 -7 -6 -5 -4 -3 -3 -2 -1 ------- Run | Yrd Mat Mat Mat Fac DSF Fac Fac Fac Res Qua Res Acc Combat Hostiles Destroyed 20 | . . . 4 . . . 3 . . 13 . . Melee 2 | . . . . . . . . . . 2 . . Cannons 1 | . . . . . . . . . . 1 . . AOE 17 | . . . 4 . . . 3 . . 10 . . Classes Destroyed 6 | . . . 1 . . . . . . 5 . . Worker 1 | . . . . . . . . . . 1 . . Builder 2 | . . . . . . . . . . 1 . 1 Swarmer 11 | . . . 4 . . . 3 . . 4 . . Grunt 6 | . . . . . . . . . . 6 . . Researcher 1 | . . . . . . . . . . 1 . . Programmer 3 | . . . . . . . . . . 3 . . Best Kill Streak 11 | . . . 4 . . . 3 . . 11 . 1 Combat Bots Only 10 | . . . 4 . . . 3 . . 10 . . Max Kills in Single Turn 5 | . . . 3 . . . 2 . . 5 . 1 Gunslinging . | . . . . . . . . . . . . . Exploded 5 | . . . 3 . . . 2 . . 5 . . Melee 1 | . . . . . . . . . . 1 . . Uniques/NPCs Destroyed . | . . . . . . . . . . . . . Combat | -11 -10 -9 -8 -7 -7 -6 -5 -4 -3 -3 -2 -1 -------- Run | Yrd Mat Mat Mat Fac DSF Fac Fac Fac Res Qua Res Acc Hostile Shots Fired 368 | . 17 23 40 . 1 . 30 26 . 83 4 144 Missed 149 | . 6 11 13 . 1 . 16 8 . 28 2 64 Hits 219 | . 11 12 27 . . . 14 18 . 55 2 80 Melee 5 | . . . . . . . . . . . . 5 Projectile 214 | . 11 12 27 . . . 14 18 . 55 2 75 AOE 2 | . . . . . . . . . . . . 2 Critical Strikes 8 | . . . . . . . . . . 4 . 4 Damage Taken 4859 | . 102 138 335 . . . 269 510 . 1286 54 2165 Core 2696 | . 73 47 150 . . . 117 133 . 562 . 1614 Absorbed by Shields . | . . . . . . . . . . . . . Core Remaining (%) 85 | 100 70 88 72 . 100 100 88 88 . 50 100 . Volleys Fired 19 | . . . 2 . . . 1 . . 16 . . Largest 1 | . . . 1 . . . 1 . . 1 . . Hottest 113 | . . . 36 . . . 36 . . 113 . . Shots Fired 19 | . . . 2 . . . 1 . . 16 . . Gun . | . . . . . . . . . . . . . Cannon 9 | . . . . . . . . . . 9 . . Launcher 10 | . . . 2 . . . 1 . . 7 . . Special . | . . . . . . . . . . . . . Kinetic . | . . . . . . . . . . . . . Thermal 9 | . . . . . . . . . . 9 . . Explosive 10 | . . . 2 . . . 1 . . 7 . . Electromagnetic . | . . . . . . . . . . . . . Robot Hit Streak 3 | . . . . . . . . . . 3 . . Robot Miss Streak 4 | . . . 2 . . . . . . 4 . . Penetration Max . | . . . . . . . . . . . . . Secondary Targets . | . . . . . . . . . . . . . Shots Hit Robots 18 | . . . . . . . . . . 12 1 5 Core Hits 48 | . . . 3 . . . 3 . . 39 . 3 Critical Kills . | . . . . . . . . . . . . . Critical Parts Destroyed . | . . . . . . . . . . . . . Critical Strikes 5 | . . . . . . . . . . 4 . 1 Sever 5 | . . . . . . . . . . 4 . 1 Melee Attacks 25 | . . . . . . 2 2 2 . 12 1 6 Impact 7 | . . . . . . 2 2 2 . 1 . . Slashing 18 | . . . . . . . . . . 11 1 6 Piercing . | . . . . . . . . . . . . . Sneak Attacks 2 | . . . . . . . . . . . . 2 Combat Hostiles . | . . . . . . . . . . . . . Follow-up Attacks . | . . . . . . . . . . . . . Damage Inflicted 3850 | . 4 3 234 . . . 340 8 . 2978 38 245 Guns . | . . . . . . . . . . . . . Cannons 149 | . . . . . . . . . . 149 . . Explosions 3137 | . . . 234 . . . 340 . . 2563 . . Melee 529 | . . . . . . . . . . 250 38 241 Ramming 35 | . 4 3 . . . . . 8 . 16 . 4 Kinetic . | . . . . . . . . . . . . . Thermal 149 | . . . . . . . . . . 149 . . Explosive 3137 | . . . 234 . . . 340 . . 2563 . . Electromagnetic . | . . . . . . . . . . . . . Impact . | . . . . . . . . . . . . . Slashing 529 | . . . . . . . . . . 250 38 241 Piercing . | . . . . . . . . . . . . . Highest Corruption 5 | . . . . . . . . . . 5 . 1 Average Corruption 3 | . . . . . . . . . . 3 . 1 Corruption Purged . | . . . . . . . . . . . . . Corruption Blocked . | . . . . . . . . . . . . . Effects 2 | . . . . . . . . . . 2 . . Message Errors 1 | . . . . . . . . . . 1 . . Heat Flow Errors 1 | . . . . . . . . . . 1 . . Overload Shots . | . . . . . . . . . . . . . Overflow Damage 173 | . . . 33 . . . 9 . . 102 . 29 Projectiles 16 | . . . . . . . . . . 16 . . Explosions 128 | . . . 33 . . . 9 . . 86 . . Melee 29 | . . . . . . . . . . . . 29 Knockbacks . | . . . . . . . . . . . . . Impact . | . . . . . . . . . . . . . Kinetic . | . . . . . . . . . . . . . Secondary . | . . . . . . . . . . . . . Self-Inflicted Damage 124 | . 2 1 . . . . . 3 . 116 . 2 Shots 2 | . . . . . . . . . . 2 . . Rammed 9 | . 1 1 . . . . . 2 . 3 . 2 Targets Rammed 9 | . 1 1 . . . . . 2 . 3 . 2 Kicked . | . . . . . . . . . . . . . Crushed . | . . . . . . . . . . . . . Highest Temperature 142 | . . . . . . . . . . 142 . . Average Temperature 45 | . . . . . . . . . . 45 . . Received Heat Transfer 465 | . 36 69 99 . . . 48 75 . 93 9 36 Siege Activations . | . . . . . . . . . . . . . Martial Activations . | . . . . . . . . . . . . . Shielding Activations . | . . . . . . . . . . . . . Robots Disrupted . | . . . . . . . . . . . . . Combat Hostiles . | . . . . . . . . . . . . . Robots Corrupted . | . . . . . . . . . . . . . Combat Hostiles . | . . . . . . . . . . . . . Parts Fried . | . . . . . . . . . . . . . Impact Corruptions . | . . . . . . . . . . . . . Robots Melted . | . . . . . . . . . . . . . Combat Hostiles . | . . . . . . . . . . . . . Parts Melted 1 | . . . . . . . . . . 1 . . Heat Transferred 111 | . . . . . . . . . . 111 . . Parts Sabotaged . | . . . . . . . . . . . . . Parts Stolen . | . . . . . . . . . . . . . Parts Stripped . | . . . . . . . . . . . . . Power Chain Reactions . | . . . . . . . . . . . . . Alert | -11 -10 -9 -8 -7 -7 -6 -5 -4 -3 -3 -2 -1 ------- Run | Yrd Mat Mat Mat Fac DSF Fac Fac Fac Res Qua Res Acc Maximum Alert Level 2 | . . . . . . . . . . 2 1 1 Low Security (%) 67 | 100 100 100 100 100 100 100 100 100 100 34 . 18 Level 1 17 | . . . . . . . . . . 6 100 81 Level 2 15 | . . . . . . . . . . 58 . . Level 3 . | . . . . . . . . . . . . . Level 4 . | . . . . . . . . . . . . . Level 5 . | . . . . . . . . . . . . . High Security . | . . . . . . . . . . . . . Max Security . | . . . . . . . . . . . . . Peak Influence 520 | . . 30 109 42 25 27 145 109 41 520 281 397 Initial 281 | . . . 12 42 25 12 . 60 41 6 281 162 Average 153 | . . 3 57 38 25 5 31 71 29 323 278 285 Influence Increases 1489 | . . 35 133 5 . 25 147 79 . 700 . 365 Destroy 0b10 Robot/C 420 | . . . 80 . . . 60 . . 280 . . Destroy 0b10 Robot/NC 15 | . . . . . . . . . . 10 . 5 Destroy Leader 50 | . . . 10 . . . 10 . . 30 . . Successful Hack 44 | . . 5 9 5 . 9 16 . . . . . Disable Machine 180 | . . . 15 . . 15 15 . . 135 . . Destroy Structure 165 | . . . 4 . . 1 46 4 . 110 . . Partial Spotted 30 | . . . . . . . . 15 . . . 15 Lose Combat Pursuer 585 | . . 30 15 . . . . 60 . 135 . 345 Influence Decreases 1122 | . . 5 70 61 12 50 22 125 68 211 229 269 Entered New Map 530 | . . . 18 51 12 13 . 65 38 5 219 109 Time Decay 412 | . . 5 32 10 . 37 12 40 30 146 . 100 Lost Part 180 | . . . 20 . . . 10 20 . 60 10 60 Squads Dispatched 11 | . 2 . . . . 1 . . . 6 . 2 Investigation 2 | . . . . . . 1 . . . 1 . . Extermination 2 | . . . . . . . . . . 1 . 1 Reinforcement 7 | . 2 . . . . . . . . 4 . 1 Assault . | . . . . . . . . . . . . . Garrison . | . . . . . . . . . . . . . Intercept . | . . . . . . . . . . . . . Searches Triggered . | . . . . . . . . . . . . . Construction Impeded . | . . . . . . . . . . . . . Haulers Reinforced . | . . . . . . . . . . . . . Active Scanning Responses . | . . . . . . . . . . . . . Cargo Convoy Interrupts . | . . . . . . . . . . . . . Stealth | -11 -10 -9 -8 -7 -7 -6 -5 -4 -3 -3 -2 -1 --------- Run | Yrd Mat Mat Mat Fac DSF Fac Fac Fac Res Qua Res Acc Distress Signals 5 | . 1 . . . . . . . . 2 . 2 Communications Jammed . | . . . . . . . . . . . . . Distress Signals . | . . . . . . . . . . . . . Times Spotted 118 | . 10 10 7 . 1 1 16 8 . 27 1 37 Peak Tracking Total 15 | . 10 10 6 . 1 . 11 5 . 15 1 15 Tactical Retreats 11 | . . 1 1 . . . . 1 . 2 . 6 Traps | -11 -10 -9 -8 -7 -7 -6 -5 -4 -3 -3 -2 -1 ------- Run | Yrd Mat Mat Mat Fac DSF Fac Fac Fac Res Qua Res Acc Traps Triggered 1 | . . . . . . . . . . . . 1 Indirectly . | . . . . . . . . . . . . . Trap Hack Attempts . | . . . . . . . . . . . . . Triggered . | . . . . . . . . . . . . . Disarmed . | . . . . . . . . . . . . . Reprogrammed . | . . . . . . . . . . . . . Reused . | . . . . . . . . . . . . . Traps Extracted . | . . . . . . . . . . . . . Installed . | . . . . . . . . . . . . . Triggered . | . . . . . . . . . . . . . Machines | -11 -10 -9 -8 -7 -7 -6 -5 -4 -3 -3 -2 -1 ---------- Run | Yrd Mat Mat Mat Fac DSF Fac Fac Fac Res Qua Res Acc Machines Disabled 12 | . . . 1 . . 1 1 . . 9 . . Max in Single Turn 2 | . . . 1 . . 1 1 . . 2 . . Machines Repaired . | . . . . . . . . . . . . . Machines Dismantled . | . . . . . . . . . . . . . Machines Sabotaged . | . . . . . . . . . . . . . Overloaded Fab Kills . | . . . . . . . . . . . . . Hacking | -11 -10 -9 -8 -7 -7 -6 -5 -4 -3 -3 -2 -1 --------- Run | Yrd Mat Mat Mat Fac DSF Fac Fac Fac Res Qua Res Acc Machines Accessed 13 | . 1 1 1 1 . 5 1 . . 3 . . Terminals 12 | . 1 1 1 1 . 4 1 . . 3 . . Fabricators . | . . . . . . . . . . . . . Repair Stations . | . . . . . . . . . . . . . Recycling Units . | . . . . . . . . . . . . . Scanalyzers 1 | . . . . . . 1 . . . . . . Garrison Access . | . . . . . . . . . . . . . Total Hacks 37 | . 1 5 5 3 . 15 2 . . 6 . . Successful 11 | . . 2 2 1 . 4 1 . . 1 . . Failed 25 | . 1 3 3 2 . 10 1 . . 5 . . Catastrophic 7 | . . . . . . 4 1 . . 2 . . Database Lockouts 1 | . . . . . . 1 . . . . . . Manual 19 | . 1 2 5 . . 5 2 . . 4 . . Terminals 35 | . 1 5 5 3 . 13 2 . . 6 . . Fabricators . | . . . . . . . . . . . . . Repair Stations . | . . . . . . . . . . . . . Recycling Units . | . . . . . . . . . . . . . Scanalyzers 2 | . . . . . . 2 . . . . . . Garrison Access . | . . . . . . . . . . . . . Terminal Hacks 6 | . . 2 1 1 . 2 . . . . . . Open DSF 2 | . . . . 1 . 1 . . . . . . Level Access Points 2 | . . . 1 . . 1 . . . . . . Locate Traps 1 | . . 1 . . . . . . . . . . Zone Layout 1 | . . 1 . . . . . . . . . . Fabricator Hacks . | . . . . . . . . . . . . . Repair Station Hacks . | . . . . . . . . . . . . . Recycling Unit Hacks . | . . . . . . . . . . . . . Scanalyzer 1 | . . . . . . 1 . . . . . . Retrieve Study 1 | . . . . . . 1 . . . . . . Garrison Access Hacks . | . . . . . . . . . . . . . Unauthorized Hacks 4 | . . . 1 . . 1 1 . . 1 . . Terminals 4 | . . . 1 . . 1 1 . . 1 . . Assimilate 1 | . . . . . . . 1 . . . . . Botnet 2 | . . . 1 . . 1 . . . . . . Sabotage 1 | . . . . . . . . . . 1 . . Fabricators . | . . . . . . . . . . . . . Repair Stations . | . . . . . . . . . . . . . Recycling Units . | . . . . . . . . . . . . . Scanalyzers . | . . . . . . . . . . . . . Garrison Access . | . . . . . . . . . . . . . Data Cores Recovered . | . . . . . . . . . . . . . Used . | . . . . . . . . . . . . . Hacking Detections 7 | . 1 1 . . . 2 1 . . 2 . . Full Trace Events 1 | . . . . . . 1 . . . . . . Feedback Events . | . . . . . . . . . . . . . Feedback Blocked . | . . . . . . . . . . . . . Robot Schematics Acquired . | . . . . . . . . . . . . . Robots Built . | . . . . . . . . . . . . . Authchips . | . . . . . . . . . . . . . Time . | . . . . . . . . . . . . . Total Robot Build Rating . | . . . . . . . . . . . . . Part Schematics Acquired 1 | . . . . . . . . . . 1 . . Parts Built . | . . . . . . . . . . . . . Authchips . | . . . . . . . . . . . . . Time . | . . . . . . . . . . . . . Total Part Build Rating . | . . . . . . . . . . . . . Part Studies Acquired 1 | . . . . . . 1 . . . . . . Parts Repaired . | . . . . . . . . . . . . . Time . | . . . . . . . . . . . . . Parts Recycled . | . . . . . . . . . . . . . Recycled Matter . | . . . . . . . . . . . . . Retrieved Matter . | . . . . . . . . . . . . . Retrieved Components . | . . . . . . . . . . . . . Parts Scanalyzed . | . . . . . . . . . . . . . Part Schematics Acquired . | . . . . . . . . . . . . . Parts Damaged . | . . . . . . . . . . . . . Bothacking | -11 -10 -9 -8 -7 -7 -6 -5 -4 -3 -3 -2 -1 ------------ Run | Yrd Mat Mat Mat Fac DSF Fac Fac Fac Res Qua Res Acc Used RIF Installer . | . . . . . . . . . . . . . Robots Hacked . | . . . . . . . . . . . . . Non-combat . | . . . . . . . . . . . . . Combat . | . . . . . . . . . . . . . Robot Hacks Applied . | . . . . . . . . . . . . . Relay Couplers Released . | . . . . . . . . . . . . . Fabnet Peak Effective % . | . . . . . . . . . . . . . Robots Rewired . | . . . . . . . . . . . . . Allies Hacked . | . . . . . . . . . . . . . Hacks Repelled . | . . . . . . . . . . . . . Allies | -11 -10 -9 -8 -7 -7 -6 -5 -4 -3 -3 -2 -1 -------- Run | Yrd Mat Mat Mat Fac DSF Fac Fac Fac Res Qua Res Acc Total Allies 1 | . . . . . . . 1 . . . . . Largest Group 1 | . . . . . . . 1 . . . . . Highest-Rated Group 26 | . . . . . . . 26 . . . . . Highest-Rated Ally 26 | . . . . . . . 26 . . . . . Total Orders . | . . . . . . . . . . . . . Ally Attacks . | . . . . . . . . . . . . . Total Damage . | . . . . . . . . . . . . . Kills . | . . . . . . . . . . . . . Allies Corrupted . | . . . . . . . . . . . . . Allies Melted . | . . . . . . . . . . . . . Intel | -11 -10 -9 -8 -7 -7 -6 -5 -4 -3 -3 -2 -1 ------- Run | Yrd Mat Mat Mat Fac DSF Fac Fac Fac Res Qua Res Acc Active Infowar (turns) 995 | . 23 50 29 21 21 147 82 91 65 302 19 145 Optics 791 | . . . . . . 87 82 91 65 302 19 145 Sensors 72 | . . . . . . 65 7 . . . . . Structural 2 | . . . . . . . . . . . . 2 Traps 460 | . . . . 17 21 67 68 91 65 131 . . Seismic 102 | . 23 50 29 . . . . . . . . . Jamming 4 | . . . . 4 . . . . . . . . Robot Analysis Total . | . . . . . . . . . . . . . Derelict Logs Recovered . | . . . . . . . . . . . . . Drone Launches . | . . . . . . . . . . . . . Drone Recoveries . | . . . . . . . . . . . . . Exploration | -11 -10 -9 -8 -7 -7 -6 -5 -4 -3 -3 -2 -1 ------------- Run | Yrd Mat Mat Mat Fac DSF Fac Fac Fac Res Qua Res Acc Turns Passed 1167 | 3 37 50 81 30 21 183 82 91 65 302 19 203 Spaces Moved 1925 | 1 69 97 135 55 56 376 185 149 129 292 33 348 Core 1320 | 1 69 97 124 23 . 60 7 149 129 292 33 336 Treads . | . . . . . . . . . . . . . Legs . | . . . . . . . . . . . . . Wheels . | . . . . . . . . . . . . . Hover 1 | . . . . . . . . . . . . 1 Flight 604 | . . . 11 32 56 316 178 . . . . 11 Fastest Speed 34 | 50 50 50 40 37 37 34 37 50 50 50 50 40 Average Speed 50 | 50 50 50 49 43 37 43 37 50 50 73 50 51 Slowest Speed 250 | 50 50 50 50 50 37 100 50 50 50 250 50 100 Overloaded Moves . | . . . . . . . . . . . . . Propulsion Burnouts . | . . . . . . . . . . . . . Robots Hopped 4 | . . . 1 . . 2 1 . . . . . Potential Cave-ins . | . . . . . . . . . . . . . Cave-ins Triggered . | . . . . . . . . . . . . . Teleports 2 | . . . . . . . . . . 1 . 1 Exploration Rate (%) 18 | 2 24 19 24 2 69 15 10 5 6 49 2 19 Regions Visited 12 Branch Regions 1 Pre-discovered Areas . | . . . . . . . . . . . . . Known Exits Taken 4 | . . . 1 1 . 1 1 . . . . . Unknown Exits Taken 7 | 1 1 1 . . . . . 1 1 1 1 . Scrap Searched . | . . . . . . . . . . . . . Spaces Dug 8 | . . . . . . 1 1 2 . 4 . . Terrain Destroyed 83 | . . . 4 . . 1 22 2 . 54 . . Melee 4 | . . . . . . 1 1 2 . . . . Projectile 5 | . . . . . . . . . . 5 . . AOE 74 | . . . 4 . . . 21 . . 49 . . Terrain Rammed 1 | . . . . . . . . . . 1 . . Walls Destroyed . | . . . . . . . . . . . . . Machines Disabled . | . . . . . . . . . . . . . Actions | -11 -10 -9 -8 -7 -7 -6 -5 -4 -3 -3 -2 -1 --------- Run | Yrd Mat Mat Mat Fac DSF Fac Fac Fac Res Qua Res Acc Total 2035 | 4 70 97 144 60 55 387 191 160 128 344 33 362 Wait 1 | . . . . . . . . . . 1 . . Move 1906 | . 68 96 132 54 55 371 182 149 128 291 32 348 Hop 4 | . . . 1 . . 2 1 . . . . . Pick Up 11 | . . . 2 1 . 3 . . . 5 . . Fast Attach 21 | . 1 . 5 2 . 4 . 4 . 2 . 3 Attach 16 | . . . . . . 2 2 2 . 7 . 3 Detach 8 | . . . . . . 1 2 2 . 3 . . Swap 1 | . . . . 1 . . . . . . . . Drop 13 | 4 . . 2 2 . 2 1 . . 2 . . Fire 19 | . . . 2 . . . 1 . . 16 . . Melee 25 | . . . . . . 2 2 2 . 12 1 6 Ram 9 | . 1 1 . . . . . 1 . 4 . 2 Kick . | . . . . . . . . . . . . . Crush . | . . . . . . . . . . . . . Escape Stasis 1 | . . . . . . . . . . 1 . . Rewire . | . . . . . . . . . . . . . Trap . | . . . . . . . . . . . . . Miscellaneous . | . . . . . . . . . . . . . Route ------- -11/Scrapyard -10/Materials -9/Materials (discovered 2 exits: *Mat / [*Min]) -8/Materials (discovered 3 exits: *Fac x3) -7/Factory -7/DSF -6/Factory (discovered 5 exits: *Fac x4 / *Low) -5/Factory (discovered 2 exits: *Fac / *Upp) -4/Factory -3/Research -3/Quarantine -2/Research -1/Access History --------- Turn | Location | Event 4 | -11/Scrapyard | Discovered new exit (range 0) 4 | -11/Scrapyard | Entered Materials 34 | -10/Materials | Discovered new exit (range 14) 41 | -10/Materials | Entered another Materials area 41 | -9/Materials | Evolved 2 slots: Propulsion x2 61 | -9/Materials | Discovered new exit (range 17) 84 | -9/Materials | Discovered new exit (range 13) 91 | -9/Materials | Entered another Materials area 91 | -8/Materials | Evolved 2 slots: Propulsion x1, Utility x1 131 | -8/Materials | Identified exit to Factory 160 | -8/Materials | Lost 4 parts (2n1u1w) 172 | -8/Materials | Entered Factory 172 | -7/Factory | Evolved 2 slots: Propulsion x1, Utility x1 202 | -7/Factory | Identified exit to DSF 202 | -7/Factory | Entered DSF 217 | -7/DSF | Discovered new exit (range 15) 220 | -7/DSF | Additional patrols routed to DSF 222 | -7/DSF | Identified exit to Factory 223 | -7/DSF | Entered Factory 223 | -6/Factory | Evolved 2 slots: Utility x2 248 | -6/Factory | Discovered new exit (range 16) 262 | -6/Factory | Identified exit to Lower Caves 290 | -6/Factory | Central database locked down 350 | -6/Factory | Identified exit to Factory 406 | -6/Factory | Entered another Factory area 406 | -5/Factory | Evolved 2 slots: Propulsion x1, Utility x1 445 | -5/Factory | Discovered new exit (range 5) 447 | -5/Factory | Identified exit to Upper Caves 477 | -5/Factory | Discovered new exit (range 22) 487 | -5/Factory | Identified exit to Factory 488 | -5/Factory | Entered another Factory area 488 | -4/Factory | Evolved 2 slots: Propulsion x1, Utility x1 514 | -4/Factory | Lost 3 parts (3n) 575 | -4/Factory | Discovered new exit (range 6) 579 | -4/Factory | Entered Research 579 | -3/Research | Evolved 2 slots: Propulsion x1, Utility x1 634 | -3/Research | Discovered new exit (range 15) 644 | -3/Research | Entered Quarantine 684 | -3/Quarantine | Cryocooling Duct disabled 697 | -3/Quarantine | Found Alien Artifact 699 | -3/Quarantine | Ambient heat levels rising (+20) 699 | -3/Quarantine | Non-combat units ordered to evacuate 704 | -3/Quarantine | Found Alien Artifact 729 | -3/Quarantine | Scanned by Researcher 736 | -3/Quarantine | Identified Hpw. Transdimensional Reconstructor 736 | -3/Quarantine | Warped through subspace 767 | -3/Quarantine | Lost 3 parts (2n1w) 776 | -3/Quarantine | Build established: Hacker-Mutant 784 | -3/Quarantine | Destroyed 10 combat bots 892 | -3/Quarantine | Found Alien Artifact 945 | -3/Quarantine | Discovered new exit (range 5) 946 | -3/Quarantine | Entered Research 946 | -2/Research | Evolved 2 slots: Propulsion x1, Utility x1 957 | -2/Research | Discovered new exit (range 10) 965 | -2/Research | Entered Access 965 | -1/Access | Evolved 2 slots: Propulsion x1, Weapon x1 1117 | -1/Access | Core integrity fell below 50% 1131 | -1/Access | Core integrity fell below 20% 1137 | -1/Access | Lost 5 parts (4u1w) 1147 | -1/Access | Identified Transdimensional Reconstructor 1147 | -1/Access | Warped through subspace 1165 | -1/Access | Identified Terrabomb 1165 | -1/Access | Used Terrabomb 1168 | -1/Access | Destroyed by C-57 Dissector with Dual-blade Saw Last Messages --------------- 01110_ Adv. Terrain Scan Processor blown off. 01116_ Penetrated by Slug. 01118_ Knocked back. 01138_ Acquired Antigrav Array. 01140_ Acquired Q-thruster. 01146_ ALERT: Potential suspicious activity detected, Q-Series report to Access Zone 8P. 01146_ Q-thruster destroyed. 01147_ Identified Transdimensional Reconstructor. 01147_ Warped through subspace. 01151_ ALERT: Suspicious intruders detected, dispatching Cutter reinforcements to area. 01161_ Knocked back. 01162_ K-01 Serf destroyed. 01162_ K-01 Serf collects debris. 01164_ Acquired 13 matter. 01165_ Identified Terrabomb. 01165_ Terrabomb activated. 01165_ U-05 Engineer builds a Wall. 01168_ K-01 Serf collects debris. Map ----- +----------------------------------------------------+ | ## #?????????# #???? ????????????????? | | ## #?????????# #??? ?????????????????? | | ## #?????????# #??? ?????????????????? | | ## #?????????# #?? ?????????????????? | | ## #?????????# #?? ??????????????????? | | ## #?????????" #? ???????????????????? | | ###+###########""" # ????????????????????? | | # """""????????????????????? | | # """""????????????????????? | | + """""? =?????????????????? | | ##########"""""""" " """"" ?????????????????? | | #?????? " ; """"" ????????????????? | | #??????? ;;#;;;;"""####??????????????? | | #???????? "" #??????????????? | | #??????? "" ;;"????????????? | | #?????????""""" """" ;;"????????????? | | #????????"""""" ""R"" ;;"????????????? | | #????? ? "" "" "" ;;"????????????? | | #???" "" ; ;;"""??????????? | | #???" ;k ; ;; ??????????? | | #???" ; ; ;; ??????????? | | ?????? """ """ # c ;; ?????????? | | ????????"""G""" ; R;c ] ;; ?????????? | | ???????""";;;;;;;;; + ;; ????????? | | ??????? " ; ; c ;; ????????? | | ??????? " ; ;;;;@;;;;;;;;;; ????????? | | ??????? ";;;;;;;;; ;;;;;;;;;;;;;;;;;;;#????????? | | ??????? R ????????? | | ???????? R ?????????? | | ???????? ;;;;;+;;;;;;;;;;;;;;;;+;##?????????? | | ????????? ;; ;;;;;;;;;; o???????????? | | ????????? ;; ; ;; ??????????? | | ?????????? "" ; ;; "" ??????????? | | ???????????? ;; ; ;; "????????????? | | ???????????? ;; ; ;; T???????????? | | ??????????????;; ; ;; "????????????? | | ??????????????;; ; ;; "????????????? | | ???????????????? ; ## ??????????????? | | ?????????????????? ;= #?????????????????? | | ????????????????????? ; ???????????????????? | | ???????????????????????# ?????????????????????? | | ?????????????????????????????????????????????????? | | ?????????????????????????????????????????????????? | | ?????????????????????????????????????????????????? | | ?????????????????????????????????????????????????? | | ?????????????????????????????????????????????????? | | ?????????????????????????????????????????????????? | | ?????????????????????????????????????????????????? | | ?????????????????????????????????????????????????? | | ?????????????????????????????????????????????????? | +----------------------------------------------------+ Best States ------------- Heat Dissipation 52 Energy Generation 5 Energy Capacity 100 Matter Stores 300 Matter Capacity 300 Sight Range 22 Robot Scan Range 15 Terrain Scan Density 410 Jamming Range 12 Armor Coverage 150 Evasion (%) 72 Recoil Reduction 3 Defensive Hacking 20 Item Schematics ----------------- Exp. Coolant Injector | -3/Quarantine | Archive Robot Schematics ------------------ None Fabricated ------------ Nothing Repaired ---------- Nothing Studied --------- Great Maul | -6/Factory | Hacked Alien Tech Used ----------------- High-powered Transdimensional Reconstructor Transdimensional Reconstructor Terrabomb Achievements -------------- None Challenges ------------ None Game ------ Seed SniperLargeArmor Manual? 0 Play Time 00:33:01 Cumulative 210.2 hours Start 2026.09.06 @ 13:38:59 End 2026.09.06 @ 14:16:45 Sessions 1 Manual Loads 0 Difficulty Rogue Special Mode None Game No. 81 Rogue 81 Adventurer 0 Explorer 0 Win Type - Total 10 Types 7/0/2/1/0/0/0/0/0/0 Lore% 68 Gallery% 65 Achievement% 58 Wizard Run 0 Options --------- Layout 0 ASCII 0 Keyboard 0 Movement Arrows Keybinds 0 Fullscreen 2 Font 18/Terminus Map View 76x50 Zoom Use 0% Tactical HUD 1 Map Filters NONE Filters NONE Steam 1 RUN: 9cb51cc6-c282-449a-988a-7e4410110e12